[Event "Titled Tuesday Blitz April 26 Late 2022"]
[White "Ivanisevic, Ivan"]
[Black "Rasulov, Vugar"]
[WhiteFideId "912417"]
[BlackFideId "13402390"]
[WhiteElo "2495"]
[BlackElo "2560"]
[Result "1-0"]
[Round "05"]
[TimeControl "180+1"]
[Date "2022.04.26"]
[WhiteClock "0:00:11"]
[BlackClock "0:00:31"]

1. d4 {[%clk 0:03:00]}  Nf6 {[%clk 0:03:00]} 2. c4 {[%clk 0:03:01]}  e6 {[%clk 0:03:00]} 3. g3 {[%clk 0:02:59]}  c5 {[%clk 0:03:00]} 4. d5 {[%clk 0:02:58]}  exd5 {[%clk 0:03:01]} 5. cxd5 {[%clk 0:02:59]}  d6 {[%clk 0:03:02]} 6. Nc3 {[%clk 0:02:59]}  g6 {[%clk 0:03:02]} 7. Bg2 {[%clk 0:02:59]}  Bg7 {[%clk 0:03:03]} 8. Nf3 {[%clk 0:03:00]}  O-O {[%clk 0:03:04]} 9. O-O {[%clk 0:03:00]}  Re8 {[%clk 0:03:04]} 10. Re1 {[%clk 0:03:00]}  a6 {[%clk 0:03:04]} 11. a4 {[%clk 0:02:57]}  Nbd7 {[%clk 0:03:05]} 12. Bf4 {[%clk 0:02:39]}  Qc7 {[%clk 0:02:58]} 13. Rc1 {[%clk 0:02:32]}  Ne4 {[%clk 0:02:51]} 14. Nd2 {[%clk 0:02:26]}  Nxc3 {[%clk 0:02:42]} 15. bxc3 {[%clk 0:02:27]}  b5 {[%clk 0:02:43]} 16. Ne4 {[%clk 0:02:16]}  Ne5 {[%clk 0:02:39]} 17. Bg5 {[%clk 0:02:16]}  Nd7 {[%clk 0:02:28]} 18. Bf4 {[%clk 0:01:32]}  Ne5 {[%clk 0:02:27]} 19. Qb3 {[%clk 0:01:28]}  Rb8 {[%clk 0:02:21]} 20. axb5 {[%clk 0:01:20]}  axb5 {[%clk 0:02:21]} 21. Bg5 {[%clk 0:01:19]}  Nd7 {[%clk 0:02:10]} 22. h4 {[%clk 0:00:52]}  h6 {[%clk 0:02:09]} 23. Bf4 {[%clk 0:00:51]}  Ne5 {[%clk 0:02:09]} 24. Ra1 {[%clk 0:00:48]}  Bf5 {[%clk 0:01:59]} 25. Ra6 {[%clk 0:00:47]}  Bxe4 {[%clk 0:01:58]} 26. Bxe4 {[%clk 0:00:48]}  Qe7 {[%clk 0:01:44]} 27. Rea1 {[%clk 0:00:47]}  g5 {[%clk 0:01:41]} 28. hxg5 {[%clk 0:00:46]}  hxg5 {[%clk 0:01:42]} 29. Bc1 {[%clk 0:00:44]}  c4 {[%clk 0:01:33]} 30. Qb4 {[%clk 0:00:41]}  Nd7 {[%clk 0:01:34]} 31. Bf3 {[%clk 0:00:39]}  Nc5 {[%clk 0:01:29]} 32. Ra7 {[%clk 0:00:34]}  Qe5 {[%clk 0:01:29]} 33. Bb2 {[%clk 0:00:26]}  Na4 {[%clk 0:01:25]} 34. Rc1 {[%clk 0:00:19]}  Qf5 {[%clk 0:01:16]} 35. g4 {[%clk 0:00:16]}  Qf4 {[%clk 0:01:16]} 36. Rc2 {[%clk 0:00:15]}  Nxb2 {[%clk 0:01:09]} 37. Rxb2 {[%clk 0:00:14]}  Qc1+ {[%clk 0:01:08]} 38. Kg2 {[%clk 0:00:13]}  Bxc3 {[%clk 0:01:08]} 39. Qxd6 {[%clk 0:00:11]}  Qxb2 {[%clk 0:01:04]} 40. Qd7 {[%clk 0:00:11]}  Rf8 {[%clk 0:01:02]} 41. Qf5 {[%clk 0:00:11]}  Bf6 {[%clk 0:00:55]} 42. Be4 {[%clk 0:00:11]}  Rfe8 {[%clk 0:00:31]} 43. Qh7+ {[%clk 0:00:10]}  Kf8 {[%clk 0:00:31]} 44. Qxf7# {[%clk 0:00:11]} 1-0


[Site "https://www.chess.com"]

[Event "Titled Tuesday Blitz April 26 Late 2022"]
[White "Jaferian, Koosha"]
[Black "Pichot, Alan"]
[WhiteFideId "12507440"]
[BlackFideId "110973"]
[WhiteElo "2030"]
[BlackElo "2579"]
[Result "0-1"]
[Round "05"]
[TimeControl "180+1"]
[Date "2022.04.26"]
[WhiteClock "0:00:13"]
[BlackClock "0:00:07"]

1. Nf3 {[%clk 0:02:59]}  Nf6 {[%clk 0:02:59]} 2. b3 {[%clk 0:03:00]}  d5 {[%clk 0:02:59]} 3. Bb2 {[%clk 0:03:00]}  Bf5 {[%clk 0:03:00]} 4. g3 {[%clk 0:03:01]}  e6 {[%clk 0:03:00]} 5. Bg2 {[%clk 0:03:01]}  h6 {[%clk 0:03:00]} 6. O-O {[%clk 0:03:02]}  a5 {[%clk 0:03:00]} 7. a4 {[%clk 0:03:02]}  Bh7 {[%clk 0:02:58]} 8. d3 {[%clk 0:03:03]}  Na6 {[%clk 0:02:58]} 9. Nbd2 {[%clk 0:03:03]}  Nb4 {[%clk 0:02:59]} 10. e3 {[%clk 0:03:04]}  Be7 {[%clk 0:02:59]} 11. Ne1 {[%clk 0:03:04]}  O-O {[%clk 0:03:00]} 12. Qe2 {[%clk 0:03:05]}  c5 {[%clk 0:03:00]} 13. f4 {[%clk 0:03:06]}  Qe8 {[%clk 0:02:52]} 14. g4 {[%clk 0:03:04]}  b5 {[%clk 0:02:43]} 15. axb5 {[%clk 0:03:03]}  Qxb5 {[%clk 0:02:42]} 16. h4 {[%clk 0:03:03]}  Nxc2 {[%clk 0:02:08]} 17. Nxc2 {[%clk 0:03:03]}  Qxd3 {[%clk 0:02:09]} 18. Qxd3 {[%clk 0:02:46]}  Bxd3 {[%clk 0:02:10]} 19. g5 {[%clk 0:02:33]}  Ng4 {[%clk 0:01:28]} 20. Rfc1 {[%clk 0:02:13]}  Bxc2 {[%clk 0:01:28]} 21. Rxc2 {[%clk 0:02:13]}  Nxe3 {[%clk 0:01:28]} 22. Rcc1 {[%clk 0:02:08]}  Bd6 {[%clk 0:01:25]} 23. Nf3 {[%clk 0:02:00]}  Rfb8 {[%clk 0:01:12]} 24. Be5 {[%clk 0:01:50]}  Bxe5 {[%clk 0:01:03]} 25. Nxe5 {[%clk 0:01:51]}  Rxb3 {[%clk 0:01:01]} 26. Rxc5 {[%clk 0:01:49]}  hxg5 {[%clk 0:00:55]} 27. hxg5 {[%clk 0:01:49]}  a4 {[%clk 0:00:47]} 28. Rc7 {[%clk 0:01:42]}  a3 {[%clk 0:00:45]} 29. g6 {[%clk 0:01:20]}  fxg6 {[%clk 0:00:35]} 30. Bh3 {[%clk 0:01:07]}  Nf5 {[%clk 0:00:19]} 31. Bxf5 {[%clk 0:00:50]}  gxf5 {[%clk 0:00:20]} 32. Kh2 {[%clk 0:00:49]}  a2 {[%clk 0:00:16]} 33. Rg1 {[%clk 0:00:49]}  Rb2+ {[%clk 0:00:06]} 34. Kh3 {[%clk 0:00:28]}  Ra3+ {[%clk 0:00:06]} 35. Kh4 {[%clk 0:00:24]}  Rh2+ {[%clk 0:00:06]} 36. Kg5 {[%clk 0:00:25]}  a1=Q {[%clk 0:00:07]} 37. Rxa1 {[%clk 0:00:13]}  Rg3+ {[%clk 0:00:07]} 0-1


[Site "https://www.chess.com"]

[Event "Titled Tuesday Blitz April 26 Late 2022"]
[White "Janik, Igor"]
[Black "Girsh, Daniel"]
[WhiteFideId "1159259"]
[BlackFideId "30949190"]
[WhiteElo "2437"]
[BlackElo "2365"]
[Result "1-0"]
[Round "05"]
[TimeControl "180+1"]
[Date "2022.04.26"]
[WhiteClock "0:00:15"]
[BlackClock "0:00:04"]

1. b3 {[%clk 0:02:55]}  d5 {[%clk 0:02:58]} 2. Bb2 {[%clk 0:02:54]}  Nf6 {[%clk 0:02:59]} 3. Nf3 {[%clk 0:02:53]}  Bf5 {[%clk 0:02:59]} 4. e3 {[%clk 0:02:52]}  e6 {[%clk 0:02:59]} 5. Be2 {[%clk 0:02:52]}  Be7 {[%clk 0:02:57]} 6. Nh4 {[%clk 0:02:53]}  Bg6 {[%clk 0:02:56]} 7. d3 {[%clk 0:02:48]}  c5 {[%clk 0:02:53]} 8. Nd2 {[%clk 0:02:48]}  Nc6 {[%clk 0:02:53]} 9. O-O {[%clk 0:02:45]}  O-O {[%clk 0:02:50]} 10. Nxg6 {[%clk 0:02:40]}  hxg6 {[%clk 0:02:51]} 11. f4 {[%clk 0:02:38]}  b5 {[%clk 0:02:49]} 12. a4 {[%clk 0:02:36]}  a6 {[%clk 0:02:38]} 13. Bf3 {[%clk 0:02:28]}  Qb6 {[%clk 0:02:36]} 14. Qe2 {[%clk 0:02:19]}  Nb4 {[%clk 0:02:13]} 15. c3 {[%clk 0:02:12]}  Nc6 {[%clk 0:02:10]} 16. d4 {[%clk 0:02:06]}  cxd4 {[%clk 0:02:03]} 17. cxd4 {[%clk 0:02:06]}  Rfc8 {[%clk 0:01:56]} 18. Rfc1 {[%clk 0:02:04]}  Na5 {[%clk 0:01:51]} 19. axb5 {[%clk 0:01:56]}  axb5 {[%clk 0:01:49]} 20. Qd3 {[%clk 0:01:55]}  Bb4 {[%clk 0:01:46]} 21. Nf1 {[%clk 0:01:50]}  Qb7 {[%clk 0:01:25]} 22. Ng3 {[%clk 0:01:42]}  Rxc1+ {[%clk 0:01:16]} 23. Rxc1 {[%clk 0:01:41]}  Rc8 {[%clk 0:01:17]} 24. Rxc8+ {[%clk 0:01:35]}  Qxc8 {[%clk 0:01:17]} 25. Bd1 {[%clk 0:01:35]}  Qc6 {[%clk 0:01:13]} 26. Kf2 {[%clk 0:01:32]}  Nb7 {[%clk 0:01:05]} 27. Qc2 {[%clk 0:01:27]}  Qd7 {[%clk 0:01:02]} 28. Bc3 {[%clk 0:01:23]}  Be7 {[%clk 0:00:52]} 29. Bf3 {[%clk 0:01:08]}  Qc6 {[%clk 0:00:51]} 30. Bd1 {[%clk 0:01:08]}  Nd6 {[%clk 0:00:50]} 31. Be1 {[%clk 0:01:07]}  Nde4+ {[%clk 0:00:49]} 32. Nxe4 {[%clk 0:01:06]}  Nxe4+ {[%clk 0:00:49]} 33. Kf1 {[%clk 0:01:06]}  Qd7 {[%clk 0:00:43]} 34. Bf3 {[%clk 0:01:02]}  Nd6 {[%clk 0:00:36]} 35. g4 {[%clk 0:00:55]}  g5 {[%clk 0:00:31]} 36. Bg3 {[%clk 0:00:48]}  gxf4 {[%clk 0:00:24]} 37. Bxf4 {[%clk 0:00:49]}  Qa7 {[%clk 0:00:22]} 38. Kg2 {[%clk 0:00:42]}  Qb7 {[%clk 0:00:19]} 39. Be2 {[%clk 0:00:40]}  Ne4 {[%clk 0:00:18]} 40. Bd3 {[%clk 0:00:40]}  g5 {[%clk 0:00:17]} 41. Bc7 {[%clk 0:00:32]}  Kg7 {[%clk 0:00:15]} 42. h3 {[%clk 0:00:27]}  Bf6 {[%clk 0:00:14]} 43. Ba5 {[%clk 0:00:23]}  Be7 {[%clk 0:00:14]} 44. Qc7 {[%clk 0:00:21]}  Qxc7 {[%clk 0:00:11]} 45. Bxc7 {[%clk 0:00:22]}  b4 {[%clk 0:00:09]} 46. Kf3 {[%clk 0:00:21]}  Nd2+ {[%clk 0:00:09]} 47. Ke2 {[%clk 0:00:21]}  Nxb3 {[%clk 0:00:10]} 48. Bc2 {[%clk 0:00:20]}  Na1 {[%clk 0:00:10]} 49. Ba4 {[%clk 0:00:20]}  b3 {[%clk 0:00:10]} 50. Kd3 {[%clk 0:00:18]}  b2 {[%clk 0:00:09]} 51. Bc2 {[%clk 0:00:18]}  Nxc2 {[%clk 0:00:06]} 52. Kxc2 {[%clk 0:00:19]}  f5 {[%clk 0:00:05]} 53. Ba5 {[%clk 0:00:18]}  f4 {[%clk 0:00:04]} 54. Kxb2 {[%clk 0:00:14]}  fxe3 {[%clk 0:00:04]} 55. Kc2 {[%clk 0:00:14]}  Bf6 {[%clk 0:00:05]} 56. Kd3 {[%clk 0:00:14]}  e2 {[%clk 0:00:05]} 57. Bc3 {[%clk 0:00:14]}  e5 {[%clk 0:00:03]} 58. dxe5 {[%clk 0:00:14]}  Be7 {[%clk 0:00:03]} 59. Kxe2 {[%clk 0:00:14]}  Kg6 {[%clk 0:00:03]} 60. Kd3 {[%clk 0:00:14]}  Kf7 {[%clk 0:00:04]} 61. Kd4 {[%clk 0:00:15]}  Ke6 {[%clk 0:00:05]} 62. Bd2 {[%clk 0:00:15]}  Bd8 {[%clk 0:00:05]} 63. Kd3 {[%clk 0:00:14]}  Kxe5 {[%clk 0:00:05]} 64. Ke3 {[%clk 0:00:14]}  Bb6+ {[%clk 0:00:04]} 65. Kf3 {[%clk 0:00:15]}  Bd8 {[%clk 0:00:04]} 66. Be3 {[%clk 0:00:15]}  d4 {[%clk 0:00:04]} 67. Bc1 {[%clk 0:00:16]}  Kd5 {[%clk 0:00:05]} 68. Ke2 {[%clk 0:00:16]}  Kc4 {[%clk 0:00:06]} 69. Kd1 {[%clk 0:00:16]}  d3 {[%clk 0:00:06]} 70. Be3 {[%clk 0:00:16]}  Kc3 {[%clk 0:00:07]} 71. Bc1 {[%clk 0:00:15]}  Kd4 {[%clk 0:00:08]} 72. Ke1 {[%clk 0:00:13]}  Ke4 {[%clk 0:00:09]} 73. Kf2 {[%clk 0:00:14]}  Ba5 {[%clk 0:00:08]} 74. Bxg5 {[%clk 0:00:14]}  d2 {[%clk 0:00:07]} 75. Ke2 {[%clk 0:00:14]}  d1=Q+ {[%clk 0:00:04]} 76. Kxd1 {[%clk 0:00:14]}  Kf3 {[%clk 0:00:05]} 77. Bf6 {[%clk 0:00:14]}  Kg3 {[%clk 0:00:05]} 78. g5 {[%clk 0:00:15]}  Kxh3 {[%clk 0:00:04]} 79. g6 {[%clk 0:00:15]} 1-0


[Site "https://www.chess.com"]

[Event "Titled Tuesday Blitz April 26 Late 2022"]
[White "Jobava, Baadur"]
[Black "Demchenko, Anton"]
[WhiteFideId "13601520"]
[BlackFideId "4160258"]
[WhiteElo "2617"]
[BlackElo "2539"]
[Result "1-0"]
[Round "05"]
[TimeControl "180+1"]
[Date "2022.04.26"]
[WhiteClock "0:00:37"]
[BlackClock "0:00:01"]

1. b3 {[%clk 0:03:00]}  g6 {[%clk 0:02:56]} 2. Bb2 {[%clk 0:03:00]}  Nf6 {[%clk 0:02:57]} 3. c4 {[%clk 0:03:00]}  Bg7 {[%clk 0:02:57]} 4. g3 {[%clk 0:03:01]}  d6 {[%clk 0:02:58]} 5. Bg2 {[%clk 0:03:01]}  O-O {[%clk 0:02:58]} 6. d4 {[%clk 0:03:01]}  Nbd7 {[%clk 0:02:57]} 7. Nf3 {[%clk 0:03:01]}  e5 {[%clk 0:02:58]} 8. dxe5 {[%clk 0:02:58]}  dxe5 {[%clk 0:02:59]} 9. O-O {[%clk 0:02:56]}  e4 {[%clk 0:02:59]} 10. Nd4 {[%clk 0:02:49]}  c6 {[%clk 0:02:59]} 11. Nc3 {[%clk 0:02:49]}  Re8 {[%clk 0:02:59]} 12. Qc2 {[%clk 0:02:45]}  Qe7 {[%clk 0:02:59]} 13. Rad1 {[%clk 0:02:44]}  h5 {[%clk 0:02:52]} 14. h3 {[%clk 0:02:43]}  Nf8 {[%clk 0:02:52]} 15. e3 {[%clk 0:02:37]}  N8h7 {[%clk 0:02:51]} 16. Nce2 {[%clk 0:02:32]}  h4 {[%clk 0:02:21]} 17. g4 {[%clk 0:02:30]}  Ng5 {[%clk 0:02:21]} 18. Nf4 {[%clk 0:02:29]}  Nd7 {[%clk 0:02:19]} 19. Kh1 {[%clk 0:02:04]}  Ne5 {[%clk 0:01:43]} 20. Nde2 {[%clk 0:02:00]}  Bh6 {[%clk 0:01:04]} 21. Qc3 {[%clk 0:01:55]}  Bg7 {[%clk 0:00:53]} 22. Qd4 {[%clk 0:01:42]}  f5 {[%clk 0:00:48]} 23. gxf5 {[%clk 0:01:38]}  Bxf5 {[%clk 0:00:47]} 24. Qd6 {[%clk 0:01:34]}  Qxd6 {[%clk 0:00:33]} 25. Rxd6 {[%clk 0:01:34]}  Rad8 {[%clk 0:00:33]} 26. Rxd8 {[%clk 0:01:27]}  Rxd8 {[%clk 0:00:33]} 27. Nd4 {[%clk 0:01:28]}  c5 {[%clk 0:00:21]} 28. Nxf5 {[%clk 0:01:26]}  gxf5 {[%clk 0:00:22]} 29. Nd5 {[%clk 0:01:25]}  Nd3 {[%clk 0:00:18]} 30. Ne7+ {[%clk 0:01:12]}  Kf7 {[%clk 0:00:18]} 31. Bxg7 {[%clk 0:01:13]}  Kxe7 {[%clk 0:00:18]} 32. f4 {[%clk 0:01:07]}  Ne6 {[%clk 0:00:17]} 33. Bc3 {[%clk 0:01:04]}  Rg8 {[%clk 0:00:15]} 34. Kh2 {[%clk 0:00:54]}  Rg3 {[%clk 0:00:12]} 35. Bd2 {[%clk 0:00:55]}  b6 {[%clk 0:00:10]} 36. Rg1 {[%clk 0:00:55]}  Rg7 {[%clk 0:00:08]} 37. Bf1 {[%clk 0:00:55]}  Rxg1 {[%clk 0:00:07]} 38. Kxg1 {[%clk 0:00:56]}  Nf8 {[%clk 0:00:06]} 39. Be2 {[%clk 0:00:50]}  Nb4 {[%clk 0:00:05]} 40. a3 {[%clk 0:00:47]}  Nc2 {[%clk 0:00:05]} 41. Bc1 {[%clk 0:00:47]}  Ne1 {[%clk 0:00:04]} 42. Kf2 {[%clk 0:00:41]}  Nd3+ {[%clk 0:00:02]} 43. Bxd3 {[%clk 0:00:41]}  exd3 {[%clk 0:00:03]} 44. e4 {[%clk 0:00:40]}  fxe4 {[%clk 0:00:03]} 45. Ke3 {[%clk 0:00:41]}  Nd7 {[%clk 0:00:02]} 46. Kxe4 {[%clk 0:00:41]}  Nf6+ {[%clk 0:00:03]} 47. Kxd3 {[%clk 0:00:41]}  Nh5 {[%clk 0:00:03]} 48. Ke4 {[%clk 0:00:38]}  Ke6 {[%clk 0:00:03]} 49. f5+ {[%clk 0:00:38]}  Kf6 {[%clk 0:00:03]} 50. Bb2+ {[%clk 0:00:39]}  Kf7 {[%clk 0:00:03]} 51. Be5 {[%clk 0:00:37]}  a6 {[%clk 0:00:02]} 52. Kf3 {[%clk 0:00:37]}  Ke7 {[%clk 0:00:01]} 53. Kg4 {[%clk 0:00:37]} 1-0


[Site "https://www.chess.com"]

[Event "Titled Tuesday Blitz April 26 Late 2022"]
[White "Kamsky, Gata"]
[Black "Stevens, Christian"]
[WhiteFideId "2000024"]
[BlackFideId "2604450"]
[WhiteElo "2645"]
[BlackElo "2557"]
[Result "0-1"]
[Round "05"]
[TimeControl "180+1"]
[Date "2022.04.26"]
[WhiteClock "0:00:03"]
[BlackClock "0:00:04"]

1. d4 {[%clk 0:03:00]}  Nf6 {[%clk 0:02:58]} 2. Nf3 {[%clk 0:02:55]}  d5 {[%clk 0:02:57]} 3. c4 {[%clk 0:02:52]}  dxc4 {[%clk 0:02:57]} 4. e3 {[%clk 0:02:51]}  a6 {[%clk 0:02:56]} 5. Bxc4 {[%clk 0:02:51]}  e6 {[%clk 0:02:56]} 6. O-O {[%clk 0:02:50]}  c5 {[%clk 0:02:54]} 7. dxc5 {[%clk 0:02:49]}  Qxd1 {[%clk 0:02:52]} 8. Rxd1 {[%clk 0:02:49]}  Bxc5 {[%clk 0:02:52]} 9. Nc3 {[%clk 0:02:38]}  b5 {[%clk 0:02:50]} 10. Be2 {[%clk 0:02:37]}  Bb7 {[%clk 0:02:47]} 11. Nd2 {[%clk 0:02:30]}  Nc6 {[%clk 0:02:38]} 12. Nb3 {[%clk 0:02:30]}  Be7 {[%clk 0:02:27]} 13. f3 {[%clk 0:02:13]}  O-O {[%clk 0:01:30]} 14. e4 {[%clk 0:02:12]}  Rfd8 {[%clk 0:01:16]} 15. Be3 {[%clk 0:02:10]}  Nd7 {[%clk 0:00:56]} 16. Rd2 {[%clk 0:01:35]}  Nde5 {[%clk 0:00:31]} 17. Rad1 {[%clk 0:01:15]}  Rxd2 {[%clk 0:00:28]} 18. Rxd2 {[%clk 0:01:14]}  Rd8 {[%clk 0:00:27]} 19. Rxd8+ {[%clk 0:01:10]}  Nxd8 {[%clk 0:00:25]} 20. Nc5 {[%clk 0:01:01]}  Bc8 {[%clk 0:00:21]} 21. a4 {[%clk 0:00:59]}  Nc4 {[%clk 0:00:17]} 22. Bxc4 {[%clk 0:00:57]}  bxc4 {[%clk 0:00:16]} 23. e5 {[%clk 0:00:31]}  Nc6 {[%clk 0:00:16]} 24. f4 {[%clk 0:00:31]}  Nb4 {[%clk 0:00:14]} 25. N3e4 {[%clk 0:00:26]}  Bxc5 {[%clk 0:00:13]} 26. Nxc5 {[%clk 0:00:24]}  Nd3 {[%clk 0:00:14]} 27. Nxd3 {[%clk 0:00:23]}  cxd3 {[%clk 0:00:14]} 28. Kf2 {[%clk 0:00:22]}  Bb7 {[%clk 0:00:14]} 29. g3 {[%clk 0:00:22]}  Bc6 {[%clk 0:00:14]} 30. b3 {[%clk 0:00:22]}  Bd5 {[%clk 0:00:13]} 31. b4 {[%clk 0:00:22]}  Bc6 {[%clk 0:00:14]} 32. b5 {[%clk 0:00:21]}  axb5 {[%clk 0:00:13]} 33. a5 {[%clk 0:00:22]}  Bb7 {[%clk 0:00:13]} 34. Bd2 {[%clk 0:00:22]}  b4 {[%clk 0:00:11]} 35. Bxb4 {[%clk 0:00:21]}  f6 {[%clk 0:00:10]} 36. Ke3 {[%clk 0:00:22]}  fxe5 {[%clk 0:00:09]} 37. fxe5 {[%clk 0:00:21]}  Ba6 {[%clk 0:00:07]} 38. Kd4 {[%clk 0:00:21]}  Kf7 {[%clk 0:00:08]} 39. g4 {[%clk 0:00:19]}  Kg6 {[%clk 0:00:08]} 40. Bd2 {[%clk 0:00:19]}  h5 {[%clk 0:00:07]} 41. h3 {[%clk 0:00:20]}  hxg4 {[%clk 0:00:07]} 42. hxg4 {[%clk 0:00:19]}  Kf7 {[%clk 0:00:07]} 43. Kc5 {[%clk 0:00:19]}  Ke7 {[%clk 0:00:07]} 44. Kb6 {[%clk 0:00:19]}  Bc4 {[%clk 0:00:07]} 45. a6 {[%clk 0:00:18]}  Kd7 {[%clk 0:00:06]} 46. Kb7 {[%clk 0:00:18]}  Bd5+ {[%clk 0:00:05]} 47. Kb8 {[%clk 0:00:18]}  Kc6 {[%clk 0:00:05]} 48. a7 {[%clk 0:00:18]}  Kc5 {[%clk 0:00:05]} 49. a8=Q {[%clk 0:00:15]}  Bxa8 {[%clk 0:00:04]} 50. Kxa8 {[%clk 0:00:16]}  Kd4 {[%clk 0:00:04]} 51. Kb7 {[%clk 0:00:13]}  Kxe5 {[%clk 0:00:05]} 52. Kc6 {[%clk 0:00:13]}  Kd4 {[%clk 0:00:03]} 53. Kb5 {[%clk 0:00:02]}  e5 {[%clk 0:00:04]} 54. Kb4 {[%clk 0:00:02]}  e4 {[%clk 0:00:04]} 55. Kb3 {[%clk 0:00:02]}  e3 {[%clk 0:00:04]} 56. Bc3+ {[%clk 0:00:02]}  Ke4 {[%clk 0:00:04]} 57. Kb2 {[%clk 0:00:03]}  Kf3 {[%clk 0:00:04]} 0-1


[Site "https://www.chess.com"]

[Event "Titled Tuesday Blitz April 26 Late 2022"]
[White "Kanyamarala, Trisha"]
[Black "Sailer, Mike"]
[WhiteFideId "45004722"]
[BlackFideId "2012901"]
[WhiteElo "2079"]
[BlackElo "2109"]
[Result "0-1"]
[Round "05"]
[TimeControl "180+1"]
[Date "2022.04.26"]
[WhiteClock "0:00:02"]
[BlackClock "0:00:03"]

1. c4 {[%clk 0:02:56]}  c6 {[%clk 0:02:58]} 2. Nc3 {[%clk 0:02:55]}  d5 {[%clk 0:02:57]} 3. e3 {[%clk 0:02:55]}  Nf6 {[%clk 0:02:56]} 4. Nf3 {[%clk 0:02:55]}  Bg4 {[%clk 0:02:51]} 5. Qb3 {[%clk 0:02:52]}  Bxf3 {[%clk 0:02:33]} 6. Qxb7 {[%clk 0:02:28]}  Bxg2 {[%clk 0:02:18]} 7. Bxg2 {[%clk 0:02:23]}  Nbd7 {[%clk 0:02:18]} 8. Qxc6 {[%clk 0:01:59]}  Rc8 {[%clk 0:02:09]} 9. Qa4 {[%clk 0:01:54]}  dxc4 {[%clk 0:02:02]} 10. O-O {[%clk 0:01:20]}  e6 {[%clk 0:01:40]} 11. d3 {[%clk 0:01:18]}  cxd3 {[%clk 0:01:32]} 12. Rd1 {[%clk 0:01:17]}  Be7 {[%clk 0:01:25]} 13. Rxd3 {[%clk 0:01:16]}  Qc7 {[%clk 0:01:16]} 14. Ne4 {[%clk 0:01:03]}  O-O {[%clk 0:01:09]} 15. Nxf6+ {[%clk 0:00:37]}  Nxf6 {[%clk 0:01:09]} 16. Bd2 {[%clk 0:00:37]}  Rfd8 {[%clk 0:00:58]} 17. Rxd8+ {[%clk 0:00:35]}  Qxd8 {[%clk 0:00:47]} 18. Bc3 {[%clk 0:00:34]}  Qc7 {[%clk 0:00:39]} 19. Rd1 {[%clk 0:00:25]}  Bd6 {[%clk 0:00:17]} 20. h3 {[%clk 0:00:18]}  Nd5 {[%clk 0:00:17]} 21. Bxd5 {[%clk 0:00:12]}  exd5 {[%clk 0:00:17]} 22. Qg4 {[%clk 0:00:11]}  Bf8 {[%clk 0:00:10]} 23. Rxd5 {[%clk 0:00:10]}  Rd8 {[%clk 0:00:05]} 24. Ba5 {[%clk 0:00:04]}  Qc1+ {[%clk 0:00:02]} 25. Kg2 {[%clk 0:00:04]}  Rxd5 {[%clk 0:00:02]} 26. Bc3 {[%clk 0:00:03]}  Qd1 {[%clk 0:00:03]} 27. Qg3 {[%clk 0:00:02]}  Qd3 {[%clk 0:00:03]} 28. h4 {[%clk 0:00:02]}  Qg6 {[%clk 0:00:03]} 0-1


[Site "https://www.chess.com"]

[Event "Titled Tuesday Blitz April 26 Late 2022"]
[White "Krstulovic, Alex"]
[Black "Fiorito, Fabian"]
[WhiteFideId "760056"]
[BlackFideId "100200"]
[WhiteElo "2193"]
[BlackElo "2395"]
[Result "0-1"]
[Round "05"]
[TimeControl "180+1"]
[Date "2022.04.26"]
[WhiteClock "0:00:20"]
[BlackClock "0:00:15"]

1. e4 {[%clk 0:03:00]}  c5 {[%clk 0:02:59]} 2. Nc3 {[%clk 0:03:00]}  Nc6 {[%clk 0:02:58]} 3. g3 {[%clk 0:03:00]}  g6 {[%clk 0:02:58]} 4. Bg2 {[%clk 0:03:01]}  Bg7 {[%clk 0:02:59]} 5. d3 {[%clk 0:03:01]}  d6 {[%clk 0:02:58]} 6. f4 {[%clk 0:03:01]}  Nf6 {[%clk 0:02:58]} 7. Nf3 {[%clk 0:03:01]}  O-O {[%clk 0:02:58]} 8. O-O {[%clk 0:03:01]}  Rb8 {[%clk 0:02:58]} 9. h3 {[%clk 0:03:01]}  b5 {[%clk 0:02:57]} 10. g4 {[%clk 0:03:01]}  b4 {[%clk 0:02:57]} 11. Ne2 {[%clk 0:03:01]}  Ba6 {[%clk 0:02:55]} 12. a3 {[%clk 0:02:59]}  b3 {[%clk 0:02:20]} 13. c3 {[%clk 0:02:45]}  c4 {[%clk 0:02:02]} 14. Nfd4 {[%clk 0:02:35]}  Nxd4 {[%clk 0:01:58]} 15. Nxd4 {[%clk 0:02:36]}  cxd3 {[%clk 0:01:58]} 16. Be3 {[%clk 0:02:28]}  Qc7 {[%clk 0:01:39]} 17. g5 {[%clk 0:02:09]}  Nd7 {[%clk 0:01:31]} 18. f5 {[%clk 0:02:08]}  Rfc8 {[%clk 0:01:25]} 19. fxg6 {[%clk 0:01:59]}  hxg6 {[%clk 0:01:22]} 20. Rf2 {[%clk 0:01:33]}  Ne5 {[%clk 0:01:21]} 21. h4 {[%clk 0:01:26]}  Nc4 {[%clk 0:01:19]} 22. Qxd3 {[%clk 0:01:17]}  e5 {[%clk 0:00:42]} 23. Nf3 {[%clk 0:00:48]}  Qa5 {[%clk 0:00:28]} 24. Nh2 {[%clk 0:00:42]}  Nxb2 {[%clk 0:00:20]} 25. Qxd6 {[%clk 0:00:40]}  Nc4 {[%clk 0:00:19]} 26. Qd7 {[%clk 0:00:33]}  Rc7 {[%clk 0:00:17]} 27. Qh3 {[%clk 0:00:32]}  Nxe3 {[%clk 0:00:16]} 28. Qxe3 {[%clk 0:00:25]}  b2 {[%clk 0:00:16]} 29. Rb1 {[%clk 0:00:22]}  Bf8 {[%clk 0:00:16]} 30. Rfxb2 {[%clk 0:00:19]}  Rxb2 {[%clk 0:00:15]} 31. Rxb2 {[%clk 0:00:20]}  Bc5 {[%clk 0:00:15]} 0-1


[Site "https://www.chess.com"]

[Event "Titled Tuesday Blitz April 26 Late 2022"]
[White "Lashkin, Jegor"]
[Black "Zor, Alber Kadir"]
[WhiteFideId "13907808"]
[BlackFideId "6353169"]
[WhiteElo "2368"]
[BlackElo "1966"]
[Result "1-0"]
[Round "05"]
[TimeControl "180+1"]
[Date "2022.04.26"]
[WhiteClock "0:01:39"]
[BlackClock "0:02:23"]

1. d4 {[%clk 0:03:00]}  Nf6 {[%clk 0:02:58]} 2. c4 {[%clk 0:03:00]}  g6 {[%clk 0:02:59]} 3. Nc3 {[%clk 0:03:00]}  d5 {[%clk 0:03:00]} 4. Nf3 {[%clk 0:03:00]}  Bg7 {[%clk 0:03:00]} 5. h3 {[%clk 0:03:01]}  O-O {[%clk 0:02:59]} 6. cxd5 {[%clk 0:03:01]}  Nxd5 {[%clk 0:03:00]} 7. e4 {[%clk 0:03:02]}  Nxc3 {[%clk 0:03:00]} 8. bxc3 {[%clk 0:03:03]}  c5 {[%clk 0:03:00]} 9. Be3 {[%clk 0:03:01]}  Qa5 {[%clk 0:03:00]} 10. Bd2 {[%clk 0:03:01]}  Rd8 {[%clk 0:02:38]} 11. Rc1 {[%clk 0:02:42]}  Qa3 {[%clk 0:02:38]} 12. d5 {[%clk 0:02:40]}  Qxa2 {[%clk 0:02:34]} 13. Ra1 {[%clk 0:02:07]}  Qb2 {[%clk 0:02:33]} 14. Rb1 {[%clk 0:02:07]}  Qa2 {[%clk 0:02:33]} 15. c4 {[%clk 0:01:56]}  Na6 {[%clk 0:02:29]} 16. Be2 {[%clk 0:01:47]}  Nb4 {[%clk 0:02:29]} 17. O-O {[%clk 0:01:46]}  a5 {[%clk 0:02:26]} 18. h4 {[%clk 0:01:39]}  Bg4 {[%clk 0:02:23]} 1-0


[Site "https://www.chess.com"]